[Event "Budapest GM ONE WEEK Feb 2024"]
[Site "Budapest"]
[Date "2024.02.28"]
[Round "5.5"]
[White "Pasti, Aron"]
[Black "Gaal, Zsoka"]
[Result "1-0"]
[ECO "C50"]
[WhiteElo "2389"]
[BlackElo "2341"]
[Annotator "RC"]
[PlyCount "83"]
[EventDate "2024.02.25"]
[EventType "tourn"]
[EventCountry "HUN"]
[SourceTitle "playchess.com"]
[Source "ChessBase"]
[SourceQuality "1"]
[TimeControl "5400+30"]

1. e4 {[%emt 0:00:02]} e5 {[%emt 0:00:17]} 2. Nf3 {[%emt 0:00:05]} Nc6 {[%emt 0:00:07]} 3. Bc4 {[%emt 0:01:32]} Nf6 {[%emt 0:00:11]} 4. d3 {[%emt 0:00:09]} Bc5 {[%emt 0:00:28]} 5. c3 {[%emt 0:00:21]} d6 {[%emt 0:03:15]} 6. O-O {[%emt 0:00:13]} a6 {[%emt 0:03:10]} 7. a4 {[%emt 0:05:37]} Ba7 {[%emt 0:02:41]} 8. Re1 {[%emt 0:02:23]} h6 {[%emt 0:09:48]} 9. Nbd2 {[%emt 0:00:23]} O-O {[%emt 0:00:24]} 10. a5 {[%emt 0:04:31]} Re8 {[%emt 0:03:44]} 11. Qb3 {[%emt 0:02:41]} Qe7 {[%emt 0:03:23]} 12. Nf1 {[%emt 0:03:18]} Rb8 {[%emt 0:10:24]} 13. Be3 {[%emt 0:17:16]} Be6 {[%emt 0:06:19]} 14. Bxa7 {[%emt 0:01:17]} Bxc4 {[%emt 0:01:56]} 15. dxc4 {[%emt 0:01:03]} Nxa7 {[%emt 0:00:07]} 16. Ne3 {[%emt 0:00:06]} Nc6 {[%emt 0:13:56]} 17. Nd5 {[%emt 0:02:03]} Qd8 {[%emt 0:00:19]} 18. Qa3 {[%emt 0:02:07]} Nd7 {[%emt 0:00:59]} 19. Nd2 {[%emt 0:02:41]} Re6 {[%emt 0:04:30]} 20. Nb3 {[%emt 0:04:01]} Ne7 {[%emt 0:03:54]} 21. Ne3 {[%emt 0:01:38]} Ng6 {[%emt 0:13:47]} 22. Rad1 {[%emt 0:04:51]} Qg5 {[%emt 0:00:15]} 23. c5 {[%emt 0:07:36]} Nh4 {[%emt 0:00:36]} 24. Kh1 {[%emt 0:00:23]} Rg6 {[%emt 0:08:13]} 25. cxd6 {[%emt 0:01:30]} cxd6 {[%emt 0:00:05]} 26. Rxd6 {[%emt 0:05:59]} Nf6 {[%emt 0:00:06]} 27. Nd2 {[%emt 0:00:42]} Qf4 {[%emt 0:03:30]} 28. f3 {[%emt 0:03:32]} Nh5 {[%emt 0:05:04]} 29. Rxg6 {[%emt 0:02:03]} Nxg6 {[%emt 0:00:05]} 30. Qd6 {[%emt 0:00:41]} Re8 {[%emt 0:00:29]} 31. Qd7 {[%emt 0:02:57]} Re6 {[%emt 0:00:08]} 32. Qd8+ {[%emt 0:01:00]} Kh7 {[%emt 0:00:06]} 33. Nd5 {[%emt 0:01:37]} Qg5 {[%emt 0:00:35]} 34. Qxg5 {[%emt 0:00:02]} hxg5 {[%emt 0:00:07]} 35. b4 {[%emt 0:01:36]} Ne7 {[%emt 0:02:22]} 36. Nb3 {[%emt 0:00:40]} Nf4 {[%emt 0:02:00]} 37. Nc5 {[%emt 0:01:43]} Nexd5 {[%emt 0:00:06]} 38. Nxe6 {[%emt 0:00:06]} Nxc3 {[%emt 0:01:05]} 39. Nxf4 {[%emt 0:00:04]} gxf4 {[%emt 0:00:04]} 40. Rc1 {[%emt 0:00:06]} Nb5 {[%emt 0:00:34]} 41. Rc5 {[%emt 0:00:08]} f6 {[%emt 0:00:04]} 42. Rd5 {[%emt 0:00:02]} 1-0

[Event "Budapest GM ONE WEEK Feb 2024"]
[Site "Budapest"]
[Date "2024.02.29"]
[Round "6.1"]
[White "Grover, Sahaj"]
[Black "Gaal, Zsoka"]
[Result "0-1"]
[ECO "A05"]
[WhiteElo "2503"]
[BlackElo "2341"]
[Annotator "TA"]
[PlyCount "72"]
[EventDate "2024.02.25"]
[EventType "tourn"]
[EventCountry "HUN"]
[SourceTitle "playchess.com"]
[Source "ChessBase"]
[SourceQuality "1"]
[TimeControl "5400+30"]

{[%evp 29,72,12,14,8,7,4,10,0,0,10,7,5,26,26,31,36,27,21,28,21,24,18,18,25,17,0,0,-2,-4,-14,-7,-45,-22,-19,-19,-17,-46,-68,-65,-64,-66,-69,-82,-532,-530]} 1. Nf3 {[%emt 0:04:09]} Nf6 {[%emt 0:00:21]} 2. b3 {[%emt 0:00:12]} g6 {[%emt 0:02:33]} 3. Bb2 {[%emt 0:00:05]} Bg7 {[%emt 0:00:07]} 4. g3 {[%emt 0:03:34]} b6 {[%emt 0:04:05]} 5. Bg2 {[%emt 0:00:06]} Bb7 {[%emt 0:00:07]} 6. O-O {[%emt 0:00:35]} O-O {[%emt 0:00:21]} 7. c4 {[%emt 0:00:05]} c5 {[%emt 0:00:56]} 8. Nc3 {[%emt 0:00:09]} d5 {[%emt 0:05:54]} 9. Nxd5 {[%emt 0:04:45]} Nxd5 {[%emt 0:00:39]} 10. Bxg7 {[%emt 0:00:05]} Kxg7 {[%emt 0:00:08]} 11. cxd5 {[%emt 0:00:04]} Qxd5 {[%emt 0:01:17]} 12. d4 {[%emt 0:00:07]} cxd4 {[%emt 0:03:04]} 13. Qxd4+ {[%emt 0:00:07]} Qxd4 {[%emt 0:00:11]} 14. Nxd4 {[%emt 0:00:05]} Bxg2 {[%emt 0:00:25]} 15. Kxg2 {[%emt 0:00:06]} Rc8 {[%emt 0:17:20]} 16. Rac1 {[%emt 0:01:48]} Nd7 {[%emt 0:01:26]} 17. Rfd1 {[%emt 0:10:32]} Nc5 {[%emt 0:11:41] Wards off Ne6+} 18. b4 {[%emt 0:02:25] The position is equal.} Na4 {[%emt 0:01:18]} 19. Nb5 {[%emt 0:08:46]} Rxc1 {[%emt 0:04:55]} 20. Rxc1 $11 {[%emt 0:00:07][%mdl 4096] Endgame. KRN-KRN} Rd8 {[%emt 0:01:32]} 21. Nxa7 {[%emt 0:26:50]} Rd2 {[%emt 0:00:29][%csl LRa2,LRe2]} 22. Kf3 {[%emt 0:00:07]} Rxa2 {[%emt 0:01:40]} 23. Rc7 {[%emt 0:00:27]} Rb2 {[%emt 0:10:32]} 24. Nc6 {[%emt 0:08:23]} Rc2 {[%emt 0:01:30]} 25. b5 {[%emt 0:00:58]} Rc5 {[%emt 0:03:48]} 26. Rxe7 {[%emt 0:00:41]} Rxb5 {[%emt 0:00:26]} 27. e4 {[%emt 0:00:27]} Nc5 {[%emt 0:02:02]} 28. Kg2 {[%emt 0:06:37]} Kf8 {[%emt 0:03:53]} 29. f4 {[%emt 0:04:03]} Rb2+ {[%emt 0:00:46]} 30. Kh3 {[%emt 0:01:10]} Rc2 {[%emt 0:02:47] Strongly threatening ...Nd3.} 31. Ra7 $1 {[%emt 0:03:46]} Nxe4 {[%emt 0:00:53]} 32. Ne5 {[%emt 0:00:09]} f6 {[%emt 0:04:15]} 33. Nf3 {[%emt 0:02:29]} Nf2+ {[%emt 0:01:45]} 34. Kh4 {[%emt 0:00:27][%cal Of3d4]} Rc5 {[%emt 0:01:53]} 35. g4 {[%emt 0:00:11] Prevents Rh5+} (35. Rxh7 $2 {too greedy.} Kg8 36. Rh6 Kg7 $19) 35... h5 {[%emt 0:01:50]} 36. Nd4 $2 {[%emt 0:00:31][%mdl 8192] [#]} (36. g5 $17 {is tougher.} Rc3 37. Ra8+ Ke7 38. gxf6+ Kxf6 39. Ng5) 36... Rc3 $1 {[%emt 0:01:13] Weighted Error Value: White=0.41/Black=0.02 (flawless) .  Loses game:     	White=1     	---        Inaccurate:     	White=1     	---        OK:         	White=9     	Black=14     Best:        	---       	Black=2      Strong:       	White=1     	Black=1} ({Inferior is} 36... Nxg4 37. Ne6+ Ke8 38. Nxc5 bxc5 39. Rg7 $18) 0-1

[Event "Budapest GM ONE WEEK Feb 2024"]
[Site "Budapest"]
[Date "2024.02.29"]
[Round "6.2"]
[White "Paszewski, Mateusz"]
[Black "Pasti, Aron"]
[Result "0-1"]
[ECO "D28"]
[WhiteElo "2286"]
[BlackElo "2389"]
[Annotator "RC"]
[PlyCount "76"]
[EventDate "2024.02.25"]
[EventType "tourn"]
[EventCountry "HUN"]
[SourceTitle "playchess.com"]
[Source "ChessBase"]
[SourceQuality "1"]
[TimeControl "5400+30"]

1. Nf3 {[%emt 0:00:03]} d5 {[%emt 0:00:37]} 2. d4 {[%emt 0:00:10]} Nf6 {[%emt 0:00:32]} 3. c4 {[%emt 0:00:19]} dxc4 {[%emt 0:01:08]} 4. e3 {[%emt 0:00:57]} e6 {[%emt 0:00:28]} 5. Bxc4 {[%emt 0:00:31]} c5 {[%emt 0:01:28]} 6. O-O {[%emt 0:01:02]} a6 {[%emt 0:02:01]} 7. Qe2 {[%emt 0:04:27]} b5 {[%emt 0:02:35]} 8. Bb3 {[%emt 0:00:49]} Nc6 {[%emt 0:03:08]} 9. dxc5 {[%emt 0:07:27]} Ne4 {[%emt 0:06:30]} 10. Bc2 {[%emt 0:15:51]} Nxc5 {[%emt 0:00:56]} 11. Nc3 {[%emt 0:00:03]} Bd6 {[%emt 0:15:59]} 12. a3 {[%emt 0:17:25]} Nd7 {[%emt 0:16:25]} 13. b3 {[%emt 0:06:35]} Bb7 {[%emt 0:06:51]} 14. Bb2 {[%emt 0:01:26]} Nf6 {[%emt 0:10:54]} 15. Rfd1 {[%emt 0:07:15]} Qe7 {[%emt 0:09:46]} 16. Ne4 {[%emt 0:17:53]} Nxe4 {[%emt 0:01:16]} 17. Bxe4 {[%emt 0:00:01]} e5 {[%emt 0:01:59]} 18. Rac1 {[%emt 0:08:19]} Na5 {[%emt 0:01:39]} 19. Bxb7 {[%emt 0:00:06]} Nxb7 {[%emt 0:00:01]} 20. Rc6 {[%emt 0:02:44]} O-O {[%emt 0:01:16]} 21. a4 bxa4 {[%emt 0:04:46]} 22. bxa4 {[%emt 0:00:45]} a5 {[%emt 0:00:46]} 23. Rb6 {[%emt 0:01:07]} e4 {[%emt 0:02:39]} 24. Qb5 {[%emt 0:05:23]} exf3 {[%emt 0:00:59]} 25. Rxb7 {[%emt 0:00:02]} Bxh2+ {[%emt 0:00:20]} 26. Kf1 {[%emt 0:02:14]} fxg2+ {[%emt 0:00:48]} 27. Kxg2 {[%emt 0:00:04]} Qe4+ {[%emt 0:00:05]} 28. Kf1 {[%emt 0:00:59]} h6 {[%emt 0:02:03]} 29. Rdd7 {[%emt 0:00:25]} Rac8 {[%emt 0:02:04]} 30. Qh5 {[%emt 0:00:22]} Qh1+ {[%emt 0:00:51]} 31. Ke2 {[%emt 0:00:01]} Rc2+ {[%emt 0:00:25]} 32. Kd3 {[%emt 0:00:47]} Qb1 {[%emt 0:00:10]} 33. Bxg7 {[%emt 0:00:53]} Rb2+ {[%emt 0:00:05]} 34. Kd4 {[%emt 0:00:20]} Rxb7 {[%emt 0:00:18]} 35. Rxb7 {[%emt 0:00:30]} Rd8+ {[%emt 0:00:05]} 36. Kc3 {[%emt 0:00:18]} Qxb7 {[%emt 0:00:23]} 37. Qxh6 {[%emt 0:00:02]} Qb4+ {[%emt 0:00:23]} 38. Kc2 {[%emt 0:00:04]} Qxa4+ {[%emt 0:00:45]} 0-1

[Event "Budapest GM ONE WEEK Feb 2024"]
[Site "Budapest"]
[Date "2024.02.29"]
[Round "6.3"]
[White "Tomic, Aleksandar"]
[Black "Paschall, William"]
[Result "1-0"]
[ECO "E16"]
[WhiteElo "2398"]
[BlackElo "2331"]
[Annotator "TA"]
[PlyCount "155"]
[EventDate "2024.02.25"]
[EventType "tourn"]
[EventCountry "HUN"]
[SourceTitle "playchess.com"]
[Source "ChessBase"]
[SourceQuality "1"]
[TimeControl "5400+30"]

{[%evp 13,155,41,30,41,22,26,23,23,17,14,10,11,16,13,20,0,3,0,0,-14,0,0,10,-15,7,0,0,9,47,14,25,22,34,39,48,21,45,0,59,27,25,17,12,0,0,0,24,0,50,45,54,35,69,60,52,46,106,97,567,578,1613,1593,1224,1348,1635,1673,1520,1251,1329,1316,1008,840,821,845,804,792,969,913,1016,462,475,426,693,222,567,561,580,547,570,569,646,638,683,669,1020,985,716,736,740,724,862,862,858,727,927,812,1619,904,1722,1170,1129,1067,5197,6489,11888,5610,6095,9640,29973,29973,29978,29971,29982,29983,29985,29986,29986,29985,29985,29986,29986,29987,29988,29989,29989,29990,29990,29991,29993,29994,29994,29992,29992,29993]} 1. d4 {[%emt 0:00:11]} Nf6 {[%emt 0:00:44]} 2. c4 {[%emt 0:01:23]} e6 {[%emt 0:00:56]} 3. Nf3 {[%emt 0:00:17]} b6 {[%emt 0:01:49]} 4. g3 {[%emt 0:00:10]} Bb7 {[%emt 0:00:13]} 5. Bg2 {[%emt 0:00:19]} Bb4+ {[%emt 0:00:46]} 6. Bd2 {[%emt 0:01:06]} c5 {[%emt 0:02:05]} 7. Bxb4 {[%emt 0:06:31]} cxb4 {[%emt 0:00:09]} 8. a3 {[%emt 0:00:33]} Qc7 {[%emt 0:10:37]} 9. Nbd2 {[%emt 0:07:06]} bxa3 {[%emt 0:01:13]} 10. Rxa3 {[%emt 0:02:11] White has an edge.} a5 {[%emt 0:02:14]} 11. O-O {[%emt 0:11:56]} O-O {[%emt 0:07:00]} 12. Qb1 {[%emt 0:01:50]} d6 {[%emt 0:05:13]} 13. e4 {[%emt 0:03:46]} e5 {[%emt 0:03:29]} 14. d5 {[%emt 0:01:08]} Na6 {[%emt 0:04:56]} 15. Nh4 {[%emt 0:02:06]} Rae8 {[%emt 0:04:56]} 16. Kh1 {[%emt 0:02:41]} Qd8 {[%emt 0:03:30]} 17. Qd1 {[%emt 0:15:40]} Bc8 {[%emt 0:00:58]} 18. Nb1 {[%emt 0:08:38][%cal Bd2b1,Bb1c3,Bc3b5][%mdl 32]} g5 {[%emt 0:03:52]} 19. Nf5 {[%emt 0:08:04]} Bxf5 {[%emt 0:01:01]} 20. exf5 {[%emt 0:00:01]} Kh8 {[%emt 0:08:21]} 21. Qc1 {[%emt 0:07:28]} Rg8 {[%emt 0:02:12]} 22. Nc3 {[%emt 0:00:11]} Nc5 {[%emt 0:03:20]} 23. Nb5 {[%emt 0:01:45]} Rg7 {[%emt 0:02:21]} 24. Qc3 {[%emt 0:02:31]} Na6 {[%emt 0:05:36]} 25. Raa1 {[%emt 0:01:58][%cal Ba3a1,Ba1e1,Be1e2,Be2a2,Ba2a7][%mdl 32]} h6 {[%emt 0:04:02]} (25... g4 $11) 26. Rae1 {[%emt 0:00:55]} Nc5 {[%emt 0:05:09]} 27. Re2 {[%emt 0:01:56]} g4 {[%emt 0:01:54]} 28. b4 {[%emt 0:01:14]} axb4 {[%emt 0:00:10]} 29. Qxb4 {[%emt 0:00:14]} Rg5 {[%emt 0:01:17]} 30. Qb1 {[%emt 0:00:59]} Kh7 {[%emt 0:02:39]} ({Black should try} 30... h5 $11) 31. Ra2 $14 {[%emt 0:00:42]} h5 {[%emt 0:01:48][%cal Bh6h5,Bh5h4][%mdl 32]} 32. Qc2 {[%emt 0:03:43]} h4 {[%emt 0:03:09] Threatens to win with ...h3.} 33. Rfa1 $1 {[%emt 0:00:31]} (33. gxh4 $6 Rh5 $15) 33... e4 {[%emt 0:01:16]} 34. Ra7 {[%emt 0:01:17]} e3 {[%emt 0:01:47]} (34... Kg7 $14) 35. Nd4 $16 {[%emt 0:03:20] White is more active.} (35. gxh4 $6 Rg7 $11) (35. Rxf7+ $6 Kg8 36. Rfa7 (36. gxh4 e2 $15) 36... e2 $11) (35. fxe3 $6 Rg7 $11) 35... exf2 $2 {[%emt 0:04:14][%mdl 8192] A mistake that costs the game.} (35... Rg7 $16 {is a better chance.}) 36. Ne6 $18 {[%emt 0:00:19]} (36. Qxf2 hxg3 37. Qxg3 (37. Rxf7+ $2 {too greedy.} Kg8 $19) 37... Kg8 $11) (36. Rxf7+ Kg8 37. Ne6 hxg3 $14 (37... Nxe6 $2 38. fxe6 hxg3 39. Raa7 $18)) 36... Rxe6 {[%emt 0:00:29]} 37. fxe6+ {[%emt 0:00:19]} Kh6 {[%emt 0:01:24]} 38. gxh4 {[%emt 0:00:14]} Re5 {[%emt 0:00:35]} 39. Qxf2 {[%emt 0:00:39]} ({Weaker is} 39. exf7 Re1+ 40. Bf1 Nfe4 $18) 39... fxe6 {[%emt 0:00:30]} 40. Qf4+ {[%emt 0:01:59]} Kg6 {[%emt 0:00:24]} 41. Rf1 {[%emt 0:00:55]} Rf5 {[%emt 0:00:27]} 42. Qc1 {[%emt 0:00:00] White wants to mate with Rxf5.} Nh5 {[%emt 0:01:19]} 43. Qe1 {[%emt 0:01:33]} Rxf1+ {[%emt 0:00:36]} 44. Bxf1 {[%emt 0:00:52][%cal Of1d3] White threatens Bd3+! and mate.} e5 {[%emt 0:00:15] [#]} 45. Bd3+ $1 {[%emt 0:00:37][%mdl 512]} Kf6 {[%emt 0:00:23]} (45... Nxd3 46. Qe4+) 46. Be2 {[%emt 0:00:44]} (46. Qf2+ $142 Nf4 47. h5) 46... Nf4 {[%emt 0:00:33]} 47. Bxg4 {[%emt 0:00:32]} Qg8 {[%emt 0:00:21]} (47... Qb8 $142) 48. Qg1 $2 {[%emt 0:00:19]} (48. h3) 48... Qg6 $2 {[%emt 0:01:18]} (48... b5 {is more resistant.} 49. Bd1 (49. cxb5 $2 {is a self mate.} Qxd5+) 49... Qxg1+ 50. Kxg1 bxc4) 49. Bf3 {[%emt 0:00:24]} Qxg1+ {[%emt 0:00:25]} 50. Kxg1 {[%emt 0:00:01][%mdl 4096] Endgame. KRB-KNN} e4 {[%emt 0:00:08]} 51. Bg4 {[%emt 0:00:30]} Ncd3 {[%emt 0:00:23]} 52. Kf1 {[%emt 0:00:42]} Ne5 {[%emt 0:00:14]} 53. Be2 {[%emt 0:00:15]} Nf7 {[%emt 0:01:31]} 54. Rd7 {[%emt 0:01:20]} Ng6 {[%emt 0:00:28]} 55. h5 {[%emt 0:00:28]} Nge5 {[%emt 0:00:11]} 56. Rb7 {[%emt 0:00:14]} Nh6 {[%emt 0:00:38]} 57. Rxb6 {[%emt 0:00:28]} Nf5 {[%emt 0:00:22]} 58. Ra6 {[%emt 0:01:04]} Kg5 {[%emt 0:00:20]} 59. Kf2 {[%emt 0:00:36]} Kf4 {[%emt 0:00:27] [#]} 60. h6 $1 {[%emt 0:00:26]} e3+ {[%emt 0:00:19]} (60... Nxh6 61. Rxd6) 61. Kg2 {[%emt 0:00:23] Hoping for h7.} Nxh6 {[%emt 0:00:18]} 62. Rxd6 {[%emt 0:00:28]} Nf5 {[%emt 0:00:21]} 63. Rf6 {[%emt 0:00:37] h4 is the strong threat.} Ke4 {[%emt 0:00:16] [#]} 64. Rxf5 $1 {[%emt 0:00:39]} Kxf5 {[%emt 0:00:05] KB-KN} 65. h4 {[%emt 0:00:11][%cal Bh2h4,Bh4h5][%mdl 32] Intending c5 and mate.} Kf6 {[%emt 0:01:04]} 66. Kg3 {[%emt 0:00:19] White mates.} Kf5 {[%emt 0:00:05]} 67. h5 {[%emt 0:00:24]} Kg5 {[%emt 0:01:14]} 68. c5 {[%emt 0:00:30][%cal Bc4c5,Bc5c6,Bc6c7][%mdl 32]} Nd7 {[%emt 0:01:05]} 69. c6 {[%emt 0:00:25]} Nf6 {[%emt 0:00:41]} 70. c7 {[%emt 0:00:29]} Ne4+ {[%emt 0:00:24]} 71. Kf3 {[%emt 0:00:08]} Nd6 {[%emt 0:00:16]} 72. Kxe3 {[%emt 0:00:00]} Kf6 {[%emt 0:00:00]} 73. Kd4 {[%emt 0:00:04]} Ke7 {[%emt 0:00:00]} 74. Bg4 {[%emt 0:00:23]} Nb5+ {[%emt 0:00:00]} 75. Ke5 {[%emt 0:00:00]} Nxc7 {[%emt 0:00:00]} 76. d6+ {[%emt 0:00:00]} Kd8 {[%emt 0:00:00]} 77. dxc7+ {[%emt 0:00:00]} Kxc7 {[%emt 0:00:00]} 78. h6 {[%emt 0:00:00] Weighted Error Value: White=0.53/Black=0.56.  Loses game:     	---       	Black=1      Mistake:       	White=1     	Black=5      Inaccurate:     	White=4     	Black=3      OK:         	White=8     	Black=12     Best:        	White=1     	---        Strong:       	White=1     	---} 1-0

[Event "Budapest GM ONE WEEK Feb 2024"]
[Site "Budapest"]
[Date "2024.02.29"]
[Round "6.4"]
[White "Pribelszky, Bence"]
[Black "Vetoshko, Volodymyr"]
[Result "0-1"]
[ECO "B10"]
[WhiteElo "2371"]
[BlackElo "2505"]
[Annotator "TA"]
[PlyCount "100"]
[EventDate "2024.02.25"]
[EventType "tourn"]
[EventCountry "HUN"]
[SourceTitle "playchess.com"]
[Source "ChessBase"]
[SourceQuality "1"]
[TimeControl "5400+30"]

{[%evp 9,100,0,0,0,-8,0,0,-2,0,0,7,16,36,0,26,0,0,0,0,0,0,-27,-34,-23,-21,-35,-26,-27,-29,-72,-65,-73,-85,-83,-77,-83,-77,-79,-62,-86,-95,-210,-198,-192,-202,-194,-197,-212,-204,-195,-197,-208,-202,-223,-210,-220,-200,-212,-205,-231,-228,-254,-220,-307,-287,-309,-319,-323,-309,-330,-322,-326,-246,-331,-325,-554,-283,-556,-297,-400,-379,-395,-385,-419,-412,-483,-464,-504,-528,-29976,-29976,-29974,-29971]} 1. e4 {[%emt 0:08:29]} c6 {[%emt 0:00:12]} 2. d3 {[%emt 0:03:38]} d5 {[%emt 0:00:13]} 3. Qe2 {[%emt 0:00:05]} dxe4 {[%emt 0:00:45]} 4. dxe4 {[%emt 0:00:05]} e5 {[%emt 0:00:18]} 5. Nf3 {[%emt 0:00:09][%cal Bg1f3,Bf3h4,Bh4f5][%mdl 32]} Nf6 {[%emt 0:00:27]} 6. g3 {[%emt 0:00:08]} Nbd7 {[%emt 0:00:48]} 7. Bg2 {[%emt 0:00:08]} Be7 {[%emt 0:00:53]} 8. O-O {[%emt 0:00:09] The position is equal.} a5 {[%emt 0:02:36]} 9. Nh4 {[%emt 0:05:47]} O-O {[%emt 0:10:51]} 10. Nf5 {[%emt 0:00:27]} Re8 {[%emt 0:01:58]} 11. Nd2 {[%emt 0:30:56]} b5 {[%emt 0:06:55]} 12. Rd1 {[%emt 0:13:24]} Bf8 {[%emt 0:05:15]} 13. a4 {[%emt 0:01:02]} Ba6 {[%emt 0:08:16]} 14. Qf3 {[%emt 0:11:59]} Qc7 {[%emt 0:06:39]} 15. Nb3 {[%emt 0:04:15]} bxa4 $1 {[%emt 0:07:29]} 16. Rxa4 {[%emt 0:00:04]} Bb5 {[%emt 0:00:17]} 17. Ra1 {[%emt 0:00:10]} a4 {[%emt 0:00:40]} 18. Nd2 {[%emt 0:00:05]} Nc5 {[%emt 0:01:05]} 19. Nb1 {[%emt 0:11:40]} Ncxe4 {[%emt 0:03:25]} 20. Nc3 {[%emt 0:00:26]} Nxc3 {[%emt 0:03:03] Black continues to play with concentration.} 21. Qxc3 {[%emt 0:00:07]} Be2 $36 {[%emt 0:07:21][%mdl 2048] Keeping White busy.} 22. Re1 {[%emt 0:00:52] [#]} Bg4 {[%emt 0:00:05]} 23. Ne3 {[%emt 0:00:38][%cal Oe3g4] aiming for Nxg4!} Bd7 {[%emt 0:00:36]} 24. Nc4 {[%emt 0:01:14]} Nd5 {[%emt 0:00:56]} 25. Bxd5 {[%emt 0:03:27]} (25. Qd2 $17) 25... cxd5 $19 {[%emt 0:00:12]} 26. Nxe5 {[%emt 0:00:04]} Qxc3 {[%emt 0:02:12]} 27. bxc3 {[%emt 0:01:01]} f6 {[%emt 0:06:57]} 28. Nd3 {[%emt 0:01:53]} Rxe1+ {[%emt 0:00:34]} 29. Nxe1 {[%emt 0:00:02]} a3 {[%emt 0:00:37]} 30. Nd3 {[%emt 0:02:05]} a2 {[%emt 0:05:30][%cal Od5d4]} 31. Nb4 {[%emt 0:00:49]} Bxb4 {[%emt 0:05:40]} 32. cxb4 {[%emt 0:00:01][%mdl 4096] Endgame. KRB-KRB} Bb5 {[%emt 0:01:23]} 33. Be3 {[%emt 0:01:01]} Bc4 {[%emt 0:00:38]} 34. Bd4 {[%emt 0:00:26]} Rb8 {[%emt 0:03:50]} 35. Bc3 {[%emt 0:00:43]} Re8 {[%emt 0:01:05]} 36. Bd4 {[%emt 0:00:30]} Re4 {[%emt 0:01:49]} 37. Bb2 {[%emt 0:00:30]} Re2 {[%emt 0:00:46]} 38. Rc1 {[%emt 0:00:02]} Kf7 {[%emt 0:01:17]} 39. Ba1 {[%emt 0:00:10]} Ke6 {[%emt 0:00:20]} 40. Kg2 {[%emt 0:00:17]} Kd7 {[%emt 0:01:10]} 41. Kf3 {[%emt 0:00:06]} Kc6 {[%emt 0:00:35]} 42. g4 $2 {[%emt 0:00:21]} (42. h3) 42... Kb5 {[%emt 0:00:41][%cal Oe2e4]} 43. Bc3 $2 {[%emt 0:00:03]} (43. Kg3) 43... Re8 {[%emt 0:00:34]} 44. g5 {[%emt 0:02:31]} fxg5 {[%emt 0:02:39]} 45. Bxg7 {[%emt 0:00:03]} Kxb4 {[%emt 0:00:12]} 46. Kg4 {[%emt 0:00:09]} Re2 {[%emt 0:01:03]} 47. Kxg5 {[%emt 0:00:52]} Rxf2 {[%emt 0:00:15] Hoping for ...Rg2+.} 48. Be5 {[%emt 0:00:12]} Re2 {[%emt 0:00:16]} 49. Kf6 {[%emt 0:01:14] [#]} Rxe5 $1 {[%emt 0:00:36][%mdl 512]} 50. Kxe5 {[%emt 0:00:11]} Kc3 {[%emt 0:00:06] Weighted Error Value: White=0.56/Black=0.22 (precise) .  Mistake:       	White=3     	---        Inaccurate:     	White=8     	Black=3      OK:         	White=12    	Black=25     Strong:       	---       	Black=1      Brilliant:      	---       	Black=1} 0-1